bitfinex/quotes_SOLUSD_20220105
["timestamp","ask_amount","ask_price","bid_price","bid_amount"]
[1641404543938,2.012e-05,166.61,166.6,92.9955]
[1641404544539,2.012e-05,166.61,166.6,84.0]
[1641404544835,2.54697367,166.72,166.61,98.42788789]
[1641404545535,74.0204,166.74,166.61,93.42788789]
[1641404545760,74.0204,166.74,166.62,17.5347]
[1641404546135,23.1535,166.76,166.62,8.54]
[1641404546335,8.54,166.78,166.63,24.6344]
[1641404546537,2.31585482,166.77,166.64,2.42975977]
[1641404547338,22.5879,166.76,166.64,2.42975977]
[1641404550239,49.64114166,166.76,166.64,2.42975977]
[1641404550441,2.57024023,166.64,166.63,23.6873]
[1641404550642,2.57024023,166.64,166.63,2.29524367]
[1641404551044,2.57024023,166.64,166.63,30.29524367]
[1641404554474,2.57024023,166.64,166.63,2.29524367]
[1641404555573,2.57024023,166.64,166.61,40.42308789]
[1641404555574,2.70475633,166.63,166.62,33.0491061]
[1641404555979,2.70475633,166.63,166.62,3.0491061]
[1641404557876,2.70475633,166.63,166.62,35.0491061]
[1641404558576,2.70475633,166.63,166.61,31.42788789]
[1641404559677,2.20475633,166.63,166.61,31.42788789]
[1641404562184,2.40949963,166.66,166.61,31.42788789]
[1641404562484,2.40949963,166.66,166.61,26.65289133]
[1641404562881,79.9444,166.7,166.61,26.65289133]
[1641404563884,2.22599189,166.69,166.61,26.65289133]
[1641404564584,2.22599189,166.69,166.6,9.1475]
[1641404565583,2.22599189,166.69,166.6,39.18553547]
[1641404574387,2.22599189,166.69,166.6,47.72553547]
[1641404576289,2.22599189,166.69,166.6,39.18553547]
[1641404576488,79.9444,166.7,166.6,39.18553547]
[1641404576692,24.8348,166.74,166.62,8.9947]
[1641404576889,24.8348,166.74,166.61,23.4125]
[1641404577189,8.54,166.76,166.61,23.4125]
[1641404577590,2.28982526,166.75,166.61,23.4125]
[1641404577900,2.28982526,166.75,166.61,23.4725]
[1641404578691,26.38242526,166.75,166.61,23.4725]
[1641404578891,26.38242526,166.75,166.65,28.43797264]
[1641404580122,25.88242526,166.75,166.65,28.43797264]
[1641404582719,3.3371806,166.7,166.65,28.43797264]
[1641404584220,3.3371806,166.7,166.65,37.43097264]
[1641404584422,3.3371806,166.7,166.65,28.43797264]
[1641404585222,3.3371806,166.7,166.65,37.43087264]
[1641404586022,3.3371806,166.7,166.65,28.43797264]
[1641404587321,3.3371806,166.7,166.68,8.9917]
[1641404588021,3.3371806,166.7,166.65,39.15797264]
[1641404588420,3.3371806,166.7,166.69,49.991]
[1641404588621,3.3371806,166.7,166.69,76.45105265]
[1641404588822,3.3371806,166.7,166.69,26.46005265]
[1641404590523,3.3371806,166.7,166.69,24.20412264]
[1641404591324,3.3371806,166.7,166.65,10.72]
[1641404591524,5.92490771,166.7,166.65,8.54]
[1641404591726,5.92490771,166.7,166.64,2.2602677]
[1641404593031,3.3371806,166.7,166.64,2.2602677]
[1641404594231,6.09310107,166.7,166.64,2.2602677]
[1641404594632,5.0,166.69,166.62,30.95683813]
[1641404595632,5.0,166.69,166.62,33.38317026]
[1641404595829,5.0,166.69,166.62,42.37797026]
[1641404598034,5.0,166.69,166.62,33.38317026]
[1641404599737,5.0,166.69,166.62,28.38317026]
[1641404600137,5.0,166.69,166.62,27.88317026]
[1641404600735,5.0,166.69,166.63,8.9944]
[1641404602737,5.0,166.69,166.62,36.87807026]
[1641404604538,5.0,166.63,166.62,36.87807026]
[1641404604737,5.0,166.63,166.62,27.88317026]
[1641404605336,5.0,166.63,166.61,8.9953]
[1641404605765,5.0,166.63,166.61,8.996]
[1641404608439,5.0,166.63,166.6,9.1475]
[1641404609239,6.06439994,166.62,166.6,9.1475]
[1641404609638,5.0,166.61,166.6,9.1475]
[1641404610940,5.0,166.61,166.56,38.62984367]
[1641404610941,5.0,166.61,166.56,15.65034367]
[1641404611139,7.47088533,166.61,166.55,483.19144568]
[1641404611741,36.97707095,166.61,166.55,483.19144568]
[1641404612845,36.97707095,166.61,166.54,6.09039699]
[1641404613042,7.47088533,166.61,166.54,6.09039699]
[1641404613643,5.0,166.61,166.54,6.09039699]
[1641404614645,2.91343198,166.6,166.54,1.09039699]
[1641404614843,2.91343198,166.6,166.53,2.2794261]
[1641404615042,2.91343198,166.6,166.53,0.02]
[1641404615447,26.88823198,166.6,166.53,0.02]
[1641404615646,27.14823198,166.6,166.53,0.02]
[1641404616445,27.64823198,166.6,166.53,0.02]
[1641404618652,8.54,166.59,166.53,0.02]
[1641404618852,9.04,166.59,166.53,0.02]
[1641404619053,9.3,166.59,166.53,0.02]
[1641404619251,25.61845667,166.58,166.53,0.02]
[1641404619451,49.11365667,166.58,166.53,0.02]
[1641404619652,4.98,166.53,166.47,3.04777881]
[1641404622081,28.18223398,166.54,166.44,17.74161928]
[1641404622284,28.18223398,166.54,166.44,16.74161928]
[1641404622484,19.98,166.47,166.44,16.74161928]
[1641404623084,19.98,166.47,166.44,18.96876395]
[1641404623585,6.06439994,166.46,166.44,18.96876395]
[1641404623784,19.98,166.47,166.44,18.96876395]
[1641404623986,19.98,166.47,166.44,16.74161928]
[1641404624584,24.98,166.47,166.44,16.74161928]
[1641404624784,24.98,166.47,166.44,8.0296]
[1641404626085,24.98,166.47,166.44,38.76025916]
[1641404627684,24.98,166.47,166.44,38.82025916]
[1641404628491,24.406,166.47,166.44,38.82025916]
[1641404628887,24.406,166.47,166.46,58.7944929]
[1641404629087,21.90800001,166.47,166.46,58.7944929]
[1641404629690,24.94019998,166.47,166.46,2.3809435]
[1641404629888,21.90800001,166.47,166.46,2.3809435]
[1641404630589,21.90800001,166.47,166.44,8.0296]
[1641404630789,21.90800001,166.47,166.44,39.87601223]
[1641404631792,21.90800001,166.47,166.45,2.40853109]
[1641404633894,21.90800001,166.47,166.44,8.0296]
[1641404634495,6.06439994,166.46,166.44,8.0296]
[1641404634695,5.0,166.45,166.44,8.0296]
[1641404638700,5.0,166.45,166.44,38.62536221]
[1641404638901,4.5,166.45,166.44,38.62536221]
[1641404639704,4.5,166.45,166.44,33.62536221]
[1641404640707,21.90800001,166.47,166.45,83.5]
[1641404641007,21.90800001,166.47,166.45,86.0]
[1641404642009,21.90800001,166.47,166.45,92.5039]
[1641404644513,49.0173,166.55,166.45,92.5039]
[1641404644712,49.0173,166.55,166.46,79.0034]
[1641404645711,51.43230996,166.55,166.46,79.0034]
[1641404649015,51.43230996,166.55,166.45,2.5]
[1641404649415,51.43230996,166.55,166.44,42.62946221]
[1641404651618,51.43230996,166.55,166.44,46.41966221]
[1641404653021,51.43230996,166.55,166.45,9.0042]
[1641404656350,51.43230996,166.55,166.44,37.41556221]
[1641404656545,51.43230996,166.55,166.44,48.59986221]
[1641404656746,5.0,166.45,166.44,57.36965926]
[1641404657647,5.0,166.45,166.44,26.74429705]
[1641404658246,5.0,166.45,166.44,17.73999705]
[1641404658447,11.06439994,166.45,166.44,17.73999705]
[1641404658647,5.0,166.45,166.44,6.7902]
[1641404659747,8.03219997,166.45,166.44,6.7902]
[1641404659949,11.06439994,166.45,166.44,6.7902]
[1641404661359,5.0,166.45,166.44,6.7902]
[1641404661555,23.8345,166.52,166.44,15.55999705]
[1641404661753,24.6921,166.55,166.44,10.55999705]
[1641404662054,23.6918,166.54,166.45,8.54]
[1641404662254,23.6918,166.54,166.46,27.90234409]
[1641404662555,25.65604814,166.59,166.49,9.0015]
[1641404662755,22.82118449,166.59,166.48,23.9035]
[1641404662958,22.82118449,166.59,166.49,0.06]
[1641404663157,22.671,166.6,166.49,10.78]
[1641404663556,22.671,166.6,166.49,13.28]
[1641404663757,2.68843335,166.59,166.51,9.0004]
[1641404664761,2.68843335,166.59,166.49,13.22]
[1641404664958,2.68843335,166.59,166.49,8.54]
[1641404666161,2.68843335,166.59,166.46,2.18]
[1641404666361,22.5441,166.58,166.45,11.67129378]
[1641404666563,22.5441,166.58,166.45,3.13129378]
[1641404666761,5.0,166.49,166.45,3.13129378]
[1641404667860,5.0,166.49,166.45,21.47004639]
[1641404669561,5.0,166.49,166.45,12.46664639]
[1641404669962,5.0,166.49,166.46,28.69102965]
[1641404671364,5.0,166.49,166.45,12.40664639]
[1641404671765,5.0,166.49,166.45,7.40664639]
[1641404672264,5.0,166.49,166.45,36.7052004]
[1641404672665,5.0,166.49,166.45,45.2452004]
[1641404673293,5.0,166.49,166.45,16.00664639]
[1641404675878,5.0,166.49,166.45,19.00664639]
[1641404676168,5.0,166.49,166.45,16.00664639]
[1641404676366,5.0,166.49,166.45,15.50664639]
[1641404676768,5.0,166.49,166.45,10.50664639]
[1641404676970,5.0,166.49,166.45,8.6]
[1641404677169,3.00061632,166.48,166.45,0.06]
[1641404677369,6.06439994,166.47,166.45,0.06]
[1641404678169,29.50197571,166.47,166.45,0.06]
[1641404681577,23.1572,166.48,166.45,0.06]
[1641404681780,4.94,166.45,166.43,0.15021785]
[1641404681975,4.94,166.45,166.44,92.54]
[1641404682178,22.9479,166.58,166.44,101.21094605]
[1641404682581,2.14234302,166.53,166.45,71.8231876]
[1641404682778,52.23580228,166.58,166.47,0.06]
[1641404682978,52.23580228,166.58,166.48,17.5419]
[1641404683180,52.23580228,166.58,166.48,8.54]
[1641404683584,29.28790228,166.58,166.49,0.06]
[1641404683881,29.28790228,166.58,166.5,8.54]
[1641404686686,29.28790228,166.58,166.5,3.54]
[1641404691913,1.46,166.5,166.47,27.47102609]
[1641404692114,3.03219997,166.49,166.48,8.54]
[1641404692312,6.06439994,166.49,166.48,5.2028194]
[1641404692916,3.03219997,166.49,166.48,5.2028194]
[1641404693114,1.46,166.5,166.48,5.2028194]
[1641404693714,1.46,166.5,166.49,2.53172027]
[1641404693912,1.46,166.5,166.49,11.07172027]
[1641404695318,1.46,166.5,166.49,53.07172027]
[1641404695718,27.96342417,166.58,166.5,55.0]
[1641404695917,48.3296,166.6,166.51,8.54]
[1641404696118,8.54,166.68,166.52,9.0001]
[1641404696319,0.06,166.67,166.52,9.0001]
[1641404696519,2.60054677,166.63,166.53,0.38681397]
[1641404696721,2.60054677,166.63,166.54,2.27899102]
[1641404696921,2.60054677,166.63,166.54,10.81899102]
[1641404698521,2.60054677,166.63,166.54,8.54]
[1641404698721,0.06,166.62,166.54,8.54]
[1641404700026,0.06,166.62,166.52,1.859882]
[1641404704227,0.4373173,166.56,166.52,1.859882]
[1641404705328,0.4373173,166.56,166.53,18.46509049]
[1641404705527,0.4373173,166.56,166.53,9.46539049]
[1641404706328,0.4373173,166.56,166.53,43.82556322]
[1641404706526,0.4373173,166.56,166.55,66.67183827]
[1641404706727,0.4373173,166.56,166.53,9.46539049]
[1641404708128,0.4373173,166.56,166.53,18.46499049]
[1641404708428,0.4373173,166.56,166.54,2.3929418]
[1641404709229,0.4373173,166.56,166.55,22.95632292]
[1641404709832,0.4373173,166.56,166.55,46.72224251]
[1641404711231,77.7262,166.65,166.56,76.9981]
[1641404711433,97.8905,166.7,166.56,76.54]
[1641404711634,122.5072,166.7,166.56,76.54]
[1641404712533,28.16186507,166.72,166.57,28.12240643]
[1641404712835,81.6219,166.78,166.59,0.06]
[1641404713032,47.9475,166.77,166.6,8.54]
[1641404713231,47.9475,166.77,166.64,2.18]
[1641404713733,25.26799419,166.76,166.65,24.38347791]
[1641404714630,25.26799419,166.76,166.71,22.95632292]
[1641404714832,2.63014985,166.76,166.71,22.95632292]
[1641404715435,47.9475,166.77,166.71,22.95632292]
[1641404715935,71.99745797,166.77,166.71,22.95632292]
[1641404716136,24.04995797,166.77,166.71,22.95632292]
[1641404716634,73.0219,166.78,166.71,22.95632292]
[1641404716635,75.51259143,166.78,166.72,0.48690756]
[1641404716835,2.49069143,166.78,166.72,0.48690756]
[1641404717035,24.9875,166.82,166.72,0.48690756]
[1641404717238,25.4875,166.82,166.72,0.48690756]
[1641404717437,23.92760257,166.81,166.72,0.48690756]
[1641404717637,0.06,166.8,166.71,22.95632292]
[1641404718638,2.60707961,166.79,166.71,22.95632292]
[1641404719742,2.60707961,166.79,166.68,1.78567371]
[1641404719939,2.60707961,166.79,166.75,22.95632292]
[1641404720341,2.66707961,166.79,166.75,22.95632292]
[1641404724878,2.66707961,166.79,166.68,8.54]
[1641404725279,2.66707961,166.79,166.76,22.95632292]
[1641404725480,6.06439994,166.78,166.76,22.95632292]
[1641404725979,31.5986048,166.77,166.76,22.95632292]
[1641404730082,6.06439994,166.78,166.76,22.95632292]
[1641404730484,6.06439994,166.78,166.68,45.11945026]
[1641404730680,6.06439994,166.78,166.73,11.47816146]
[1641404730885,6.06439994,166.78,166.73,23.37960977]
[1641404731084,30.32046671,166.81,166.73,23.37960977]
[1641404732482,3.04469152,166.82,166.73,23.37960977]
[1641404732685,3.10469152,166.82,166.73,23.37960977]
[1641404733387,30.7078166,166.82,166.73,23.37960977]
[1641404734784,30.7078166,166.82,166.73,22.95632292]
[1641404734986,30.9678166,166.82,166.73,22.45632292]
[1641404735785,30.9678166,166.82,166.71,2.4230619]
[1641404735992,30.9678166,166.82,166.75,10.97816146]
[1641404736188,30.9678166,166.82,166.75,22.45632292]
[1641404736488,30.7078166,166.82,166.75,22.45632292]
[1641404740820,3.10469152,166.82,166.75,22.45632292]
[1641404741197,3.10469152,166.82,166.74,31.37576666]
[1641404741393,3.10469152,166.82,166.78,22.45632292]
[1641404742793,28.95039241,166.82,166.78,22.45632292]
[1641404746701,28.95039241,166.82,166.72,76.9586]
[1641404746901,23.1117,166.81,166.8,22.45632292]
[1641404747102,44.06439994,166.81,166.8,22.45632292]
[1641404747702,6.06439994,166.81,166.8,22.45632292]
[1641404751829,35.06439994,166.81,166.8,22.45632292]
[1641404753029,22.44997708,166.8,166.68,97.514]
[1641404753229,22.7899,166.79,166.68,97.514]
[1641404753831,22.7899,166.79,166.68,22.837]
[1641404754032,26.3552541,166.78,166.69,1.7908462]
[1641404755832,2.36797222,166.78,166.69,1.7908462]
[1641404756634,2.42797222,166.78,166.69,1.7908462]
[1641404757035,0.06,166.78,166.69,1.7908462]
[1641404757934,2.76117544,166.77,166.69,1.7908462]
[1641404758536,2.76117544,166.77,166.68,28.67612728]
[1641404758938,5.0,166.69,166.67,24.6725]
[1641404759136,5.0,166.69,166.66,8.54]
[1641404759537,5.0,166.69,166.67,2.46158862]
[1641404761340,0.0001,166.69,166.66,17.5319]
[1641404761543,0.0001,166.69,166.66,8.6]
[1641404761944,0.0001,166.69,166.67,3.0]
[1641404762241,0.0001,166.69,166.68,101.9015]
[1641404762441,2.42255928,166.79,166.69,80.02819099]
[1641404763941,2.42255928,166.79,166.69,75.02819099]
[1641404765147,30.54286034,166.79,166.69,25.02819099]
[1641404765745,2.42255928,166.79,166.69,25.02819099]
[1641404766745,2.42255928,166.79,166.69,25.08819099]
[1641404767754,30.54785967,166.79,166.69,25.08819099]
[1641404768350,2.42255928,166.79,166.69,25.08819099]
[1641404768951,2.42255928,166.79,166.7,2.08903215]
[1641404770660,2.42255928,166.79,166.7,5.08903215]
[1641404770850,2.42255928,166.79,166.7,14.07883215]
[1641404772452,2.42255928,166.79,166.7,9.07883215]
[1641404773857,24.2213,166.82,166.7,4.07883215]
[1641404774056,24.2213,166.82,166.7,28.64833215]
[1641404774459,24.2213,166.82,166.7,24.5695]
[1641404774881,34.81811995,166.81,166.7,24.5695]
[1641404775279,23.5457,166.8,166.7,24.5695]
[1641404777180,23.5457,166.8,166.7,33.6675]
[1641404778782,23.5457,166.8,166.7,28.6675]
[1641404780785,23.5457,166.8,166.7,37.2075]
[1641404782185,23.5457,166.8,166.7,19.5695]
[1641404783892,23.5457,166.8,166.7,14.5695]
[1641404784089,23.6057,166.8,166.67,10.72]
[1641404784290,23.6057,166.8,166.67,8.54]
[1641404784590,24.1057,166.8,166.67,8.54]
[1641404784990,23.6057,166.8,166.68,30.11535575]
[1641404785192,24.1057,166.8,166.68,30.11535575]
[1641404785990,24.1057,166.8,166.66,24.4066]
[1641404786991,24.1057,166.8,166.67,24.25372027]
[1641404787496,24.1057,166.8,166.68,24.7187]
[1641404788896,24.1057,166.8,166.68,19.7187]
[1641404789698,23.6057,166.8,166.68,19.7187]
[1641404789899,23.6057,166.8,166.68,19.7787]
[1641404790301,23.6057,166.8,166.68,22.7787]
[1641404790500,23.6057,166.8,166.68,19.7787]
[1641404793932,23.6057,166.8,166.68,14.7787]
[1641404794132,23.6057,166.8,166.68,0.06]
[1641404794432,23.8657,166.8,166.68,0.06]
[1641404796133,23.6057,166.8,166.68,0.06]
[1641404796731,23.8657,166.8,166.68,0.06]
[1641404797431,23.6057,166.8,166.68,0.06]
[1641404799032,4.94,166.68,166.67,24.25372027]
[1641404799233,4.94,166.68,166.65,17.7109]
[1641404800232,4.94,166.68,166.65,43.72473836]
[1641404801036,4.94,166.68,166.65,17.7109]
[1641404802135,22.7126,166.72,166.65,17.7109]
[1641404802534,22.7126,166.72,166.65,12.7709]
[1641404803836,25.57458409,166.75,166.65,12.7709]
[1641404805239,23.3283,166.74,166.65,12.7709]
[1641404805441,2.29224774,166.73,166.65,12.7709]
[1641404808042,2.29224774,166.73,166.65,7.7709]
[1641404808841,2.29224774,166.73,166.65,16.9144]
[1641404812948,2.29224774,166.73,166.63,24.7918]
[1641404813145,24.2087,166.72,166.62,3.12839618]
[1641404813548,24.4687,166.72,166.62,3.12839618]
[1641404813947,26.91234995,166.71,166.61,392.93182611]
[1641404814146,2.65218759,166.69,166.61,392.93182611]
[1641404814546,2.65218759,166.69,166.61,28.11190243]
[1641404814749,24.3958,166.7,166.61,28.11190243]
[1641404815348,24.3958,166.7,166.62,8.54]
[1641404816247,24.3958,166.7,166.62,11.54]
[1641404817048,24.3958,166.7,166.62,23.66311053]
[1641404817947,24.3958,166.7,166.62,18.66311053]
[1641404819353,2.98148588,166.73,166.62,18.66311053]
[1641404819552,23.4089,166.72,166.62,41.93001053]
[1641404820354,23.4089,166.72,166.62,29.93641053]
[1641404821755,24.9866,166.75,166.62,29.93641053]
[1641404821956,49.5857,166.75,166.62,42.01902325]
[1641404822155,49.5857,166.75,166.64,3.0]
[1641404822354,24.5991,166.75,166.65,8.54]
[1641404822555,24.5991,166.75,166.66,24.67657178]
[1641404822556,2.44704068,166.74,166.66,24.67657178]
[1641404822855,24.5991,166.75,166.66,28.21657178]
[1641404825863,24.5991,166.75,166.66,37.20857178]
[1641404826864,2.57584481,166.74,166.66,37.20857178]
[1641404827096,2.57584481,166.74,166.66,28.21657178]
[1641404827996,2.57584481,166.74,166.66,23.21657178]
[1641404828598,2.57584481,166.74,166.66,8.54]
[1641404828998,2.57584481,166.74,166.62,34.93641053]
[1641404829197,23.0805,166.73,166.62,11.66951053]
[1641404829598,27.72405852,166.72,166.62,41.7835385]
[1641404829799,27.13424506,166.71,166.62,41.7835385]
[1641404830401,24.0892,166.71,166.62,41.7835385]
[1641404831399,26.96884035,166.71,166.62,41.7835385]
[1641404833000,26.96884035,166.71,166.62,36.7835385]
[1641404834004,24.0892,166.71,166.62,36.7835385]
[1641404838107,24.0892,166.71,166.62,31.7835385]
[1641404843013,24.0892,166.71,166.62,26.7835385]
[1641404844811,24.0892,166.71,166.63,8.54]
[1641404848039,24.0892,166.71,166.63,3.54]
[1641404853045,1.46,166.63,166.62,26.7835385]
[1641404854751,1.46,166.63,166.62,35.3235385]
[1641404862153,22.7894,166.68,166.62,35.3235385]
[1641404862556,22.7894,166.68,166.62,33.8635385]
[1641404882710,2.22848338,166.7,166.62,33.8635385]
[1641404888525,2.22848338,166.7,166.62,25.3235385]
[1641404888719,2.22848338,166.7,166.6,11.96235569]
[1641404888921,2.48848338,166.7,166.6,11.96235569]
[1641404889119,7.15545837,166.62,166.6,11.96235569]
[1641404889320,7.15545837,166.62,166.6,3.12975569]
[1641404889520,10.18765834,166.62,166.6,3.12975569]
[1641404889723,13.21985831,166.62,166.59,9.1173]
[1641404892125,8.21985831,166.62,166.57,12.33730016]
[1641404892622,5.0,166.59,166.57,12.33730016]
[1641404892822,5.0,166.59,166.55,31.04589795]
[1641404892823,5.0,166.59,166.55,8.54]
[1641404893024,5.0,166.59,166.55,17.7009]
[1641404893222,5.0,166.59,166.55,18.2547827]
[1641404894024,10.0,166.59,166.55,18.2547827]
[1641404895324,0.0001,166.59,166.55,18.2547827]
[1641404895525,23.1513,166.7,166.56,107.5505]
[1641404895824,23.1513,166.7,166.58,3.0]
[1641404896025,25.472012,166.7,166.59,23.3936]
[1641404896227,25.472012,166.7,166.59,33.1083827]
[1641404896424,25.472012,166.7,166.6,25.7929158]
[1641404897025,25.472012,166.7,166.6,20.7929158]
[1641404897824,25.472012,166.7,166.62,8.9961]
[1641404898025,25.472012,166.7,166.6,20.7929158]
[1641404899024,25.472012,166.7,166.61,3.9966]
[1641404899225,59.0,166.69,166.61,3.9966]
[1641404899632,2.45883248,166.67,166.61,3.9966]
[1641404903537,22.7676,166.68,166.61,3.9966]
[1641404904136,22.7676,166.68,166.6,29.8318158]
[1641404904137,1.0034,166.61,166.6,29.8318158]
[1641404904736,1.0034,166.61,166.6,38.8289158]
[1641404905740,1.0034,166.61,166.6,18.036]
[1641404906962,1.0034,166.61,166.59,8.9977]
[1641404907162,0.5034,166.61,166.59,8.9977]
[1641404909163,5.0,166.6,166.59,8.9977]
[1641404910563,11.06439994,166.6,166.59,8.9977]
[1641404911669,8.03219997,166.6,166.59,8.9977]
[1641404912065,5.0,166.6,166.59,8.9977]
[1641404913265,5.0,166.6,166.58,8.9982]
[1641404913466,11.06439994,166.6,166.58,17.5382]
[1641404913671,8.03219997,166.6,166.58,8.54]
[1641404913867,5.0,166.6,166.58,8.54]
[1641404914067,5.0,166.6,166.58,3.54]
[1641404915270,6.06439994,166.59,166.58,3.54]
[1641404915669,5.0,166.6,166.58,3.54]
[1641404918272,3.8,166.6,166.58,3.54]
[1641404919074,1.46,166.58,166.57,8.9988]
[1641404922280,2.54472645,166.62,166.57,8.9988]
[1641404922680,2.54472645,166.62,166.56,11.1794]
[1641404924282,4.95,166.57,166.56,11.1794]
[1641404928611,4.95,166.57,166.56,8.9994]
[1641404929210,8.54,166.7,166.57,4.0486]
[1641404930411,33.99905726,166.64,166.56,32.5042]
[1641404933213,33.99905726,166.64,166.56,23.505]
[1641404934015,33.99905726,166.64,166.55,18.6522827]
[1641404934415,33.99905726,166.64,166.55,27.6515827]
[1641404934616,33.99905726,166.64,166.55,18.6522827]
[1641404934818,31.8565287,166.64,166.55,18.6522827]
[1641404935218,31.8565287,166.64,166.55,43.4708827]
[1641404935817,31.8565287,166.64,166.57,8.9988]
[1641404936020,34.03141661,166.64,166.57,8.9988]
[1641404936419,31.8565287,166.64,166.57,8.9988]
[1641404936616,31.8565287,166.64,166.55,66.93091837]
[1641404936822,31.8565287,166.64,166.57,9.90865626]
[1641404937721,34.34796314,166.64,166.57,9.90865626]
[1641404937921,34.34796314,166.64,166.58,8.9982]
[1641404940325,34.34796314,166.64,166.57,18.90735626]
[1641404940525,34.34796314,166.64,166.57,9.90865626]
[1641404943233,34.34796314,166.64,166.56,8.9993]
[1641404943433,34.34796314,166.64,166.55,33.7561]
[1641404944835,34.60796314,166.64,166.55,8.9375]
[1641404946842,34.66796314,166.64,166.52,32.83545626]
[1641404947039,34.66796314,166.64,166.52,9.90865626]
[1641404947238,43.20796314,166.64,166.52,9.90865626]
[1641404947439,43.70796314,166.64,166.48,8.54]
[1641404947643,143.09866314,166.64,166.47,544.83794086]
[1641404947939,143.09866314,166.64,166.48,9.0036]
[1641404949143,143.09866314,166.64,166.48,18.91225626]
[1641404950145,143.09866314,166.64,166.49,12.13454632]
[1641404950447,142.33866314,166.64,166.5,23.03827145]
[1641404950859,142.33866314,166.64,166.51,33.51745626]
[1641404951662,142.33866314,166.64,166.51,9.90865626]
[1641404951867,142.83866314,166.64,166.49,3.13154632]
[1641404952864,143.09866314,166.64,166.48,25.57903862]
[1641404953466,143.09866314,166.64,166.47,37.58405196]
[1641404953665,143.09866314,166.64,166.47,34.45345626]
[1641404953865,143.09866314,166.64,166.47,43.45735626]
[1641404954465,143.09866314,166.64,166.47,66.16190181]
[1641404955067,143.09866314,166.64,166.47,57.15800181]
[1641404955566,143.09866314,166.64,166.47,34.45345626]
[1641404955766,202.79866314,166.64,166.47,9.90865626]
[1641404958269,202.79866314,166.64,166.47,4.90865626]
[1641404958471,202.79866314,166.64,166.46,12.13611831]
[1641404959074,143.09866314,166.64,166.46,12.13611831]
[1641404959473,143.09866314,166.64,166.47,23.5828]
[1641404959972,142.83866314,166.64,166.47,23.5828]
[1641404960575,59.7,166.63,166.46,3.13181831]
[1641404960774,0.06,166.62,166.46,3.13181831]
[1641404960977,1.53846154,166.62,166.43,9.697763]
[1641404961176,0.06,166.6,166.43,0.15021785]
[1641404961377,2.24001429,166.58,166.43,0.15021785]
[1641404961576,59.7,166.56,166.43,0.15021785]
[1641404961778,2.40207266,166.52,166.38,0.30040075]
[1641404961977,59.7,166.5,166.37,508.09190955]
[1641404962277,0.06,166.48,166.29,85.87376922]
[1641404962478,59.7,166.46,166.29,8.31346922]
[1641404962683,58.14611869,166.45,166.29,26.27782188]
[1641404962880,59.7,166.44,166.27,3.32861]
[1641404963077,84.0,166.42,166.25,47.25886422]
[1641404963279,5.0,166.31,166.26,1.11064162]
[1641404963678,5.0,166.31,166.25,38.41679182]
[1641404963880,5.0,166.31,166.25,10.63819182]
[1641404964078,8.6,166.3,166.25,10.63819182]
[1641404964280,84.0,166.29,166.14,21.09157121]
[1641404964478,2.35610721,166.28,166.13,3.0]
[1641404964679,8.54,166.27,166.1,3.03605372]
[1641404964878,8.54,166.27,166.12,2.18]
[1641404965078,25.11696603,166.26,166.12,11.202]
[1641404965280,8.54,166.25,166.12,9.022]
[1641404965482,84.0,166.24,166.09,9.0039]
[1641404965680,2.79984049,166.23,166.09,8.6839]
[1641404966083,3.05984049,166.23,166.09,8.6839]
[1641404966281,3.05984049,166.23,166.09,3.7439]
[1641404966481,30.5169715,166.21,166.1,2.6388108]
[1641404966681,8.54,166.2,166.05,9.2091]
[1641404966882,8.54,166.2,166.06,0.06]
[1641404967381,2.79984049,166.23,166.06,0.06]
[1641404967382,11.33984049,166.23,166.07,18.21535436]
[1641404967681,11.33984049,166.23,166.08,9.73535436]
[1641404967880,11.33984049,166.23,166.11,3.0]
[1641404968084,11.33984049,166.23,166.08,43.41259484]
[1641404968281,5.0,166.09,166.08,40.41259484]
[1641404968481,8.54,166.23,166.12,4.0218]
[1641404968682,3.03219997,166.16,166.09,62.3657988]
[1641404968883,8.54,166.23,166.09,62.4257988]
[1641404969082,0.06,166.22,166.09,10.4257988]
[1641404969281,8.54,166.21,166.09,0.06]